bitfinex-derivatives/quotes_SOLF0:USTF0_20250626
["timestamp","ask_amount","ask_price","bid_price","bid_amount"]
[1750901646516,4.7066,145.54,145.41,594.02]
[1750901646724,4.7066,145.54,145.45,8.67107481]
[1750901647304,4.7066,145.54,145.43,8.67107481]
[1750901647615,66.16,145.61,145.5,8.67493703]
[1750901647917,2.3746,145.58,145.47,8.67493703]
[1750901648112,8.67493703,145.54,145.43,8.67493703]
[1750901648417,8.67493703,145.49,145.36,8.67493703]
[1750901648613,8.67493703,145.49,145.34,841.84]
[1750901648614,8.68625862,145.49,145.34,841.84]
[1750901648811,68.5275,145.53,145.37,8.68625862]
[1750901649117,68.5275,145.53,145.39,6.8743]
[1750901649118,6.871,145.47,145.39,6.8743]
[1750901649418,77.21375862,145.53,145.4,8.68625862]
[1750901650418,2.3675,145.53,145.4,8.68625862]
[1750901650621,11.05375862,145.53,145.4,74.84625862]
[1750901650817,68.5275,145.53,145.43,8.68625862]
[1750901651217,68.5275,145.53,145.4,66.16]
[1750901651412,68.5275,145.53,145.41,8.68625862]
[1750901652612,68.5275,145.53,145.42,8.68625862]
[1750901653012,6.87,145.49,145.42,8.68625862]
[1750901653418,8.68625862,145.51,145.4,66.16]
[1750901653711,2.3818,145.5,145.4,66.16]
[1750901653914,6.8704,145.48,145.4,66.16]
[1750901654111,2.3818,145.5,145.4,66.16]
[1750901654312,2.3818,145.5,145.41,8.68213328]
[1750901654512,2.3818,145.5,145.44,8.68213328]
[1750901654920,2.3818,145.5,145.4,66.16]
[1750901655118,68.5275,145.53,145.44,8.68213328]
[1750901655320,68.5275,145.53,145.45,8.68213328]
[1750901655515,68.5275,145.53,145.44,8.67764263]
[1750901656219,2.3818,145.54,145.49,8.6729715]
[1750901656518,1.2526988,145.64,145.51,8.6729715]
[1750901656715,1.2526988,145.64,145.52,67.3531]
[1750901656911,1.2526988,145.64,145.6,8.6593232]
[1750901657115,1.2526988,145.64,145.63,8.6593232]
[1750901657517,1.2526988,145.64,145.58,8.66142176]
[1750901657719,1.2526988,145.64,145.57,68.16]
[1750901658119,1.2526988,145.64,145.57,76.81761656]
[1750901658415,8.1152988,145.64,145.57,6.8658]
[1750901658612,8.1152988,145.64,145.51,186.6]
[1750901658613,2.3983,145.63,145.51,186.6]
[1750901658817,2.3983,145.63,145.59,6.8646]
[1750901659018,69.4126988,145.64,145.51,186.6]
[1750901659019,1.2526988,145.64,145.6,78.98628005]
[1750901659221,4.6099,145.76,145.61,259.18]
[1750901659421,4.6099,145.76,145.62,72.64]
[1750901659831,2.4629,145.75,145.62,72.64]
[1750901660034,8.65731447,145.73,145.61,8.65731447]
[1750901660322,8.65731447,145.72,145.57,72.64]
[1750901660522,2.4629,145.75,145.6,8.65731447]
[1750901660728,2.4629,145.75,145.67,8.65433958]
[1750901660924,2.4629,145.75,145.63,75.14]
[1750901661125,2.4629,145.75,145.68,8.65001446]
[1750901661330,2.4629,145.75,145.63,75.14]
[1750901661527,2.4629,145.75,145.64,8.65001446]
[1750901661917,83.79001446,145.74,145.63,82.0028]
[1750901662133,83.79001446,145.74,145.58,75.14]
[1750901662327,8.65001446,145.73,145.61,8.65001446]
[1750901662525,8.65001446,145.73,145.58,75.14]
[1750901662725,668.36,145.74,145.58,75.14]
[1750901663030,668.36,145.74,145.62,6.8631]
[1750901663231,2.4629,145.75,145.58,75.14]
[1750901663733,11.12109047,145.75,145.58,75.14]
[1750901663926,2.4629,145.75,145.61,8.65819047]
[1750901664133,8.65819047,145.73,145.61,8.65819047]
[1750901664343,86.63819047,145.73,145.61,8.65819047]
[1750901664628,77.98,145.73,145.61,8.65819047]
[1750901664820,86.63819047,145.73,145.61,8.65819047]
[1750901665224,6.8617,145.66,145.59,6.8649]
[1750901666025,8.66203596,145.7,145.58,83.80203596]
[1750901666923,77.98,145.73,145.58,83.80203596]
[1750901667120,593.08,145.74,145.58,75.14]
[1750901667625,6.8598,145.7,145.63,15.52503596]
[1750901667827,593.08,145.74,145.63,8.66203596]
[1750901668141,8.66203596,145.72,145.58,75.14]
[1750901668331,8.66203596,145.72,145.59,8.66203596]
[1750901668532,8.66203596,145.69,145.56,8.66203596]
[1750901668831,8.66203596,145.66,145.53,8.66203596]
[1750901669137,13.9427,145.65,145.58,6.865]
[1750901669434,7.0802,145.65,145.52,80.48]
[1750901669633,6.8635,145.62,145.53,8.66203596]
[1750901669936,7.0802,145.65,145.52,80.48]
[1750901670230,80.46,145.64,145.52,8.66203596]
[1750901670538,8.66203596,145.62,145.52,8.66203596]
[1750901670731,8.66203596,145.62,145.51,6.8685]
[1750901671230,5.03147289,145.61,145.48,593.02]
[1750901671433,8.66203596,145.62,145.5,8.66203596]
[1750901671631,5.03147289,145.61,145.5,8.66203596]
[1750901671843,5.03147289,145.63,145.53,8.66203596]
[1750901672035,5.03147289,145.63,145.48,593.02]
[1750901672036,5.03147289,145.62,145.48,593.02]
[1750901672337,5.03147289,145.61,145.51,8.66203596]
[1750901672640,5.03147289,145.6,145.51,8.66203596]
[1750901672936,6.8654,145.58,145.51,8.66203596]
[1750901673138,4.44964947,145.63,145.51,8.66203596]
[1750901673334,5.07473504,145.62,145.51,8.66203596]
[1750901673849,5.07473504,145.61,145.51,8.66203596]
[1750901674037,8.66203596,145.6,145.48,8.66203596]
[1750901674237,8.66203596,145.6,145.47,8.66203596]
[1750901674628,8.66203596,145.57,145.44,62.0]
[1750901674937,87.5326,145.56,145.45,15.53353596]
[1750901675138,8.66203596,145.54,145.41,673.54]
[1750901675346,10.61172426,145.53,145.41,89.14203596]
[1750901675531,10.62400325,145.52,145.41,8.66203596]
[1750901675842,5.80355527,145.51,145.41,8.66203596]
[1750901676334,9.20020701,145.52,145.43,8.66203596]
[1750901676535,15.00425979,145.55,145.36,281.02]
[1750901676734,15.00425979,145.54,145.36,281.02]
[1750901677039,15.00467329,145.53,145.41,8.66203596]
[1750901677243,10.63112056,145.52,145.42,8.66203596]
[1750901677536,18.8391196,145.55,145.42,8.66203596]
[1750901677726,15.00329313,145.54,145.43,8.66203596]
[1750901677929,216.52329313,145.53,145.26,593.14]
[1750901678142,680.6726,145.56,145.36,8.68207411]
[1750901678143,8.68207411,145.5,145.36,8.68207411]
[1750901678336,9.19962193,145.49,145.36,8.68207411]
[1750901678539,6.8706,145.47,145.4,6.8734]
[1750901679133,15.00280846,145.48,145.36,8.68207411]
[1750901679439,15.75857411,145.47,145.32,1.1938]
[1750901679640,6.872,145.44,145.38,6.8748]
[1750901680142,15.75857411,145.47,145.38,6.8748]
[1750901680445,6.8716,145.45,145.39,6.8742]
[1750901680638,15.75857411,145.47,145.35,8.68207411]
[1750901680936,15.7658108,145.47,145.35,62.0]
[1750901681353,15.7658108,145.47,145.38,6.8748]
[1750901682145,15.7658108,145.47,145.39,6.8741]
[1750901682446,15.7658108,145.47,145.35,70.6893108]
[1750901682641,13.9471,145.47,145.38,8.6893108]
[1750901682839,4.6875,145.47,145.38,8.6893108]
[1750901683041,4.6875,145.47,145.35,62.0]
[1750901683235,6.8716,145.45,145.39,6.8739]
[1750901683646,6.8716,145.45,145.36,89.2093108]
[1750901683851,6.8716,145.45,145.39,6.8743]
[1750901684239,13.3768108,145.47,145.36,80.52]
[1750901684741,13.3768108,145.47,145.37,6.8752]
[1750901685145,18.22942644,145.47,145.37,6.8752]
[1750901685444,4.6875,145.47,145.36,89.2093108]
[1750901685639,8.6893108,145.46,145.36,80.52]
[1750901685944,6.8729,145.43,145.36,87.3954]
[1750901686140,8.6893108,145.46,145.36,87.3954]
[1750901686342,6.8731,145.42,145.36,87.3954]
[1750901686548,89.2293108,145.46,145.36,80.52]
[1750901686948,89.2293108,145.46,145.36,87.3957]
[1750901687351,89.2293108,145.46,145.36,80.52]
[1750901687539,6.8734,145.41,145.36,80.52]
[1750901687736,89.2293108,145.46,145.32,1.1938]
[1750901687942,8.69371223,145.43,145.31,78.52]
[1750901688145,2.4592,145.42,145.35,8.69511659]
[1750901688440,2.4592,145.42,145.31,78.52]
[1750901688640,6.8735,145.41,145.35,6.8758]
[1750901688845,2.4592,145.42,145.31,87.21332068]
[1750901689043,2.4592,145.42,145.31,78.52]
[1750901689247,8.69332068,145.4,145.28,8.69332068]
[1750901689437,2.3508,145.39,145.27,1.196]
[1750901689638,4.7676,145.39,145.27,9.88932068]
[1750901689842,6.8768,145.34,145.27,9.88932068]
[1750901690041,8.69332068,145.37,145.27,8.69332068]
[1750901690542,8.69332068,145.37,145.26,671.66]
[1750901690848,8.69332068,145.37,145.26,6.8804]
[1750901691147,8.69332068,145.37,145.25,8.69332068]
[1750901691449,8.69332068,145.37,145.23,1.196]
[1750901691450,4.7676,145.39,145.29,8.70029647]
[1750901691641,4.7676,145.39,145.27,8.70029647]
[1750901692140,4.7676,145.39,145.3,8.70029647]
[1750901692340,4.7676,145.39,145.29,8.70029647]
[1750901692740,4.7676,145.39,145.31,6.8777]
[1750901693651,6.8759,145.36,145.31,6.8777]
[1750901694554,8.70016147,145.38,145.28,6.8795]
[1750901694946,4.7676,145.39,145.28,6.8795]
[1750901695143,8.70016147,145.37,145.26,78.54]
[1750901695540,6.8764,145.35,145.26,78.54]
[1750901695746,8.70016147,145.38,145.26,78.54]
[1750901696148,6.8761,145.36,145.3,6.8782]
[1750901696357,4.7676,145.39,145.28,8.70016147]
[1750901696556,6.8757,145.37,145.28,8.70016147]
[1750901696751,4.7676,145.39,145.28,8.70016147]
[1750901697146,4.7676,145.39,145.28,8.69704776]
[1750901697352,4.7676,145.39,145.32,6.8774]
[1750901697948,4.7676,145.39,145.28,70.69704776]
[1750901698651,2.4168,145.39,145.31,8.69704776]
[1750901699252,6.8749,145.38,145.3,8.69704776]
[1750901699447,2.4168,145.39,145.28,62.0]
[1750901699647,2.4168,145.39,145.31,8.69704776]
[1750901700359,6.8734,145.41,145.31,8.69704776]
[1750901700548,2.3754,145.45,145.37,8.69704776]
[1750901701047,78.58,145.5,145.4,8.69704776]
[1750901701246,78.58,145.5,145.38,78.58]
[1750901701451,8.69704776,145.46,145.32,79.7808]
[1750901701660,8.69704776,145.43,145.32,79.7808]
[1750901701852,87.27704776,145.43,145.32,1.2008]
[1750901702053,87.27704776,145.43,145.29,8.69704776]
[1750901702054,8.69704776,145.4,145.29,8.69704776]
[1750901702259,8.69704776,145.37,145.22,1.2008]
[1750901702450,8.69704776,145.37,145.22,8.69704776]
[1750901702451,8.69704776,145.34,145.22,8.69704776]
[1750901702756,2.3241,145.33,145.22,8.69704776]
[1750901703551,91.91884776,145.36,145.25,8.69704776]
[1750901703757,91.91884776,145.36,145.2,78.56]
[1750901703758,91.91884776,145.36,145.2,87.25704776]
[1750901703960,91.91884776,145.36,145.26,8.69704776]
[1750901704259,83.2218,145.36,145.26,8.69704776]
[1750901704451,2.4219,145.36,145.29,8.69704776]
[1750901704651,593.86,145.37,145.29,8.69704776]
[1750901704860,78.56,145.4,145.29,8.69704776]
[1750901705253,78.56,145.4,145.3,8.69704776]
[1750901705552,6.9534,145.41,145.33,8.69704776]
[1750901705758,672.44,145.44,145.27,1.1969]
[1750901705759,672.44,145.44,145.34,8.69704776]
[1750901705960,9.236,145.43,145.34,8.69704776]
[1750901706162,2.3632,145.43,145.34,8.69704776]
[1750901706463,9.2357,145.43,145.38,6.8747]
[1750901706760,2.3632,145.43,145.33,8.69704776]
[1750901707061,6.8743,145.4,145.34,6.8765]
[1750901707261,2.3632,145.43,145.32,78.58]
[1750901707751,6.874,145.4,145.32,78.58]
[1750901707952,2.3632,145.43,145.32,87.27704776]
[1750901708558,6.8734,145.41,145.36,6.8758]
[1750901709660,2.3632,145.43,145.32,87.27704776]
[1750901709857,2.3632,145.43,145.35,8.69704776]
[1750901710759,2.3632,145.43,145.35,6.8762]
[1750901710760,6.8735,145.41,145.35,6.8762]
[1750901711152,2.3632,145.43,145.35,6.8762]
[1750901711365,2.3632,145.43,145.36,6.8757]
[1750901711864,2.3632,145.43,145.33,70.69704776]
[1750901712365,6.8735,145.41,145.33,70.69704776]
[1750901713261,2.3632,145.43,145.36,8.69704776]
[1750901714765,78.58,145.44,145.36,8.69704776]
[1750901714967,85.4522,145.44,145.36,8.69704776]
[1750901715264,78.58,145.44,145.36,8.69704776]
[1750901715569,9.1216,145.45,145.4,6.8738]
[1750901716271,2.25,145.45,145.36,8.69704776]
[1750901716571,2.4182,145.47,145.41,6.873]
[1750901716758,2.4182,145.47,145.4,8.69704776]
[1750901716962,2.4182,145.47,145.38,76.46]
[1750901717162,2.4182,145.47,145.38,85.15704776]
[1750901717568,5.75740406,145.49,145.38,85.15704776]
[1750901718370,5.75740406,145.48,145.4,8.69704776]
[1750901718574,5.75740406,145.49,145.4,8.69704776]
[1750901718773,5.75740406,145.48,145.4,8.69704776]
[1750901719077,5.75740406,145.5,145.4,8.69704776]
[1750901719265,6.8709,145.47,145.42,6.8729]
[1750901719465,5.75740406,145.48,145.42,6.8729]
[1750901719764,5.75740406,145.5,145.42,6.8729]
[1750901720074,14.45445182,145.49,145.38,76.46]
[1750901720265,5.75740406,145.48,145.37,1.1958]
[1750901720465,6.8724,145.44,145.39,6.8742]
[1750901720668,6.8724,145.44,145.37,1.1958]
[1750901720867,5.76281057,145.47,145.39,8.69704776]
[1750901721159,2.4169,145.48,145.39,8.69704776]
[1750901721360,8.06426673,145.47,145.37,1.1958]
[1750901721570,5.78325223,145.46,145.37,6.8752]
[1750901721771,14.4803068,145.45,145.33,144.77704776]
[1750901721972,5.78372715,145.44,145.33,144.77704776]
[1750901722276,5.78372715,145.45,145.36,6.8754]
[1750901722461,5.78372715,145.44,145.36,6.8754]
[1750901722664,8.69704776,145.45,145.35,6.8762]
[1750901722860,8.69704776,145.45,145.33,144.77704776]
[1750901722861,84.34018206,145.44,145.33,82.77704776]
[1750901723078,84.34018206,145.44,145.3,192.72]
[1750901723079,8.69704776,145.42,145.3,8.69704776]
[1750901723267,8.69704776,145.42,145.32,6.8775]
[1750901723268,12.65098206,145.41,145.32,6.8775]
[1750901723467,4.44157667,145.4,145.3,8.69704776]
[1750901723669,6.8758,145.36,145.3,8.69704776]
[1750901723862,2.3124,145.4,145.3,8.69704776]
[1750901724067,4.44235508,145.39,145.3,8.69704776]
[1750901724265,2.3124,145.4,145.31,6.878]
[1750901724571,10.2837362,145.39,145.3,8.69704776]
[1750901724782,6.8762,145.36,145.3,15.57554776]
[1750901725464,8.15334965,145.4,145.3,8.69704776]
[1750901725661,4.44238633,145.39,145.3,8.69704776]
[1750901725861,2.3124,145.4,145.32,6.8774]
[1750901726180,6.8758,145.37,145.32,6.8774]
[1750901727376,2.3124,145.4,145.3,8.69704776]
[1750901727984,2.3124,145.4,145.33,8.69704776]
[1750901728172,74.06,145.44,145.33,8.69704776]
[1750901728373,2.2717,145.43,145.33,8.69704776]
[1750901728975,6.8742,145.4,145.35,6.8758]
[1750901729278,2.2717,145.43,145.33,8.69704776]
[1750901729474,6.8738,145.41,145.36,6.8755]
[1750901730080,6.8743,145.4,145.35,6.8759]
[1750901730978,6.8743,145.4,145.36,6.8757]
[1750901731478,2.2717,145.43,145.33,70.69704776]
[1750901732076,6.8736,145.41,145.36,6.8753]
[1750901732278,2.2717,145.43,145.33,70.69704776]
[1750901732676,10.96874776,145.43,145.29,1.1948]
[1750901732880,15.41464964,145.43,145.3,8.69704776]
[1750901733189,6.8739,145.4,145.35,6.8759]
[1750901733380,2.2717,145.43,145.33,8.69704776]
[1750901733785,6.8743,145.4,145.35,6.8759]
[1750901734192,6.8746,145.39,145.34,6.8766]
[1750901734392,2.2717,145.43,145.33,8.69704776]
[1750901734893,6.8754,145.37,145.32,6.8775]
[1750901735086,6.8754,145.37,145.29,1.1948]
[1750901735087,8.69704776,145.42,145.29,1.1948]
[1750901735288,8.69704776,145.42,145.3,8.69704776]
[1750901735989,6.8769,145.34,145.29,6.8791]
[1750901736190,74.3647,145.38,145.28,82.77704776]
[1750901736493,8.69704776,145.33,145.18,17.28914788]
[1750901736695,2.3081,145.32,145.22,8.69704776]
[1750901737693,2.3081,145.32,145.25,8.69704776]
[1750901738198,2.3081,145.32,145.27,6.88]
[1750901738593,2.3081,145.32,145.28,6.8795]
[1750901738789,2.3081,145.32,145.26,8.69704776]
[1750901739302,2.3081,145.32,145.29,6.8787]
[1750901739503,76.5933,145.38,145.29,70.69704776]
[1750901739693,2.3249,145.37,145.29,8.69704776]
[1750901740002,2.3249,145.37,145.32,6.8775]
[1750901740493,2.3249,145.37,145.29,8.69704776]
[1750901741094,6.8758,145.36,145.29,8.69704776]
[1750901741496,2.3249,145.37,145.29,8.69704776]
[1750901742003,6.8762,145.36,145.31,6.8778]
[1750901742394,6.8762,145.36,145.3,8.69704776]
[1750901742600,123.21087609,145.41,145.3,8.69704776]
[1750901742905,125.57307609,145.41,145.33,8.69704776]
[1750901743594,6.8744,145.39,145.34,6.8764]
[1750901744102,6.8744,145.39,145.33,8.69704776]
[1750901744898,6.874,145.4,145.33,8.69704776]
[1750901745597,6.874,145.4,145.35,6.8759]
[1750901746405,6.874,145.4,145.36,6.8757]
[1750901747402,125.57307609,145.41,145.37,6.8752]
[1750901747597,69.9,145.47,145.36,8.69704776]
[1750901747799,2.403,145.46,145.36,8.69704776]
[1750901748203,6.8725,145.43,145.38,6.8745]
[1750901748696,6.8725,145.43,145.39,6.8743]
[1750901749298,2.403,145.46,145.39,6.8743]
[1750901749504,2.403,145.46,145.4,6.8737]
[1750901749909,6.8716,145.45,145.39,8.69704776]
[1750901750097,4.7149,145.48,145.39,8.69704776]
[1750901750301,4.7149,145.48,145.42,8.69704776]
[1750901750497,2.2742,145.53,145.48,6.8701]
[1750901750703,2.4169,145.52,145.45,8.69704776]
[1750901751400,2.4169,145.52,145.48,8.69704776]
[1750901751597,2.4169,145.52,145.45,8.69704776]
[1750901751801,2.4169,145.52,145.42,67.98]
[1750901751996,2.4169,145.52,145.44,8.69704776]
[1750901752507,9.2851,145.52,145.46,6.8706]
[1750901753009,2.4169,145.52,145.47,6.8704]
[1750901753496,2.4169,145.52,145.49,6.8694]
[1750901753700,2.2742,145.56,145.47,8.69704776]
[1750901753910,4.5078,145.56,145.47,8.69704776]
[1750901754207,4.5078,145.56,145.44,70.69704776]
[1750901754408,8.69704776,145.55,145.44,8.69704776]
[1750901754608,6.8701,145.48,145.43,6.8724]
[1750901754811,8.69704776,145.55,145.42,602.49704776]
[1750901755104,14.68559282,145.56,145.45,8.69704776]
[1750901755304,6.8686,145.52,145.46,6.871]
[1750901755512,4.5078,145.56,145.46,6.871]
[1750901755708,4.5078,145.56,145.47,6.8705]
[1750901755909,4.5078,145.56,145.45,8.69704776]
[1750901756310,5.66410808,145.55,145.46,5.66410808]
[1750901756503,4.5078,145.56,145.5,5.66410808]
[1750901757105,2.4354,145.6,145.54,5.66410808]
[1750901757510,6.865,145.59,145.54,12.53120808]
[1750901757711,2.4354,145.6,145.54,5.66410808]
[1750901757909,2.4354,145.6,145.56,5.66410808]
[1750901758126,2.2216,145.63,145.58,5.66410808]
[1750901758417,2.2216,145.63,145.53,67.96]
[1750901758418,2.2216,145.63,145.53,76.62130127]
[1750901758614,6.862,145.66,145.53,76.62130127]
[1750901759217,2.2216,145.67,145.6,6.864]
[1750901759413,2.2216,145.67,145.53,67.96]
[1750901759719,6.8644,145.6,145.53,8.66130127]
[1750901759908,8.66130127,145.63,145.53,8.66130127]
[1750901760106,2.4453,145.66,145.53,8.66130127]
[1750901760312,8.66130127,145.64,145.53,8.66130127]
[1750901760618,2.4453,145.66,145.56,8.66130127]
[1750901760806,2.2216,145.67,145.56,67.94]
[1750901761006,2.4453,145.71,145.63,8.66130127]
[1750901761221,67.94,145.73,145.66,8.66130127]
[1750901761222,2.4528,145.72,145.66,8.66130127]
[1750901761422,2.4528,145.72,145.65,6.8616]
[1750901761423,6.8607,145.68,145.62,67.94]
[1750901761719,8.66130127,145.71,145.58,67.94]
[1750901762020,67.94,145.71,145.59,8.66130127]
[1750901762212,67.94,145.71,145.62,8.66130127]
[1750901762613,9.3116,145.72,145.65,8.66130127]
[1750901762812,2.4528,145.72,145.6,593.3]
[1750901763311,2.4528,145.72,145.65,8.66130127]
[1750901763716,2.4528,145.72,145.64,76.58130127]
[1750901763909,8.66130127,145.71,145.59,76.58130127]
[1750901764115,8.66130127,145.71,145.61,6.8639]
[1750901764319,2.2369,145.7,145.59,76.58130127]
[1750901764623,8.66130127,145.68,145.56,184.32]
[1750901764818,8.66130127,145.65,145.54,67.92]
[1750901765016,72.6587,145.64,145.54,67.92]
[1750901765217,81.32000127,145.64,145.54,67.92]
[1750901765422,6.8654,145.58,145.54,67.92]
[1750901765617,2.3176,145.63,145.54,67.92]
[1750901766225,4.7387,145.64,145.58,8.66130127]
[1750901767423,8.66130127,145.63,145.54,67.92]
[1750901767726,2.3176,145.63,145.54,67.92]
[1750901768225,67.9,145.82,145.62,8.66130127]
[1750901768419,4.745,145.77,145.67,8.66130127]
[1750901768617,4.745,145.77,145.64,8.66130127]
[1750901768821,4.745,145.77,145.66,8.66130127]
[1750901769019,4.745,145.77,145.69,8.66130127]
[1750901769338,2.3226,145.77,145.7,8.66130127]
[1750901769732,2.4224,145.8,145.69,67.9]
[1750901769926,2.4224,145.8,145.71,8.66130127]
[1750901770225,6.8546,145.81,145.74,6.8574]
[1750901770436,4.6463,145.83,145.77,8.66130127]
[1750901770824,4.6463,145.83,145.78,8.66130127]
[1750901771132,4.6463,145.83,145.71,593.12]
[1750901771322,6.8552,145.8,145.73,6.8583]
[1750901771627,4.6463,145.83,145.71,593.12]
[1750901771827,6.8541,145.82,145.75,8.66130127]
[1750901772021,4.6463,145.83,145.75,8.66130127]
[1750901772232,4.6463,145.83,145.76,8.66130127]
[1750901772427,2.3226,145.83,145.76,8.66130127]
[1750901772629,2.3226,145.83,145.76,76.52130127]
[1750901772836,2.3226,145.83,145.76,67.86]
[1750901774029,2.3226,145.83,145.76,74.7169]
[1750901774219,67.86,145.86,145.76,67.86]
[1750901774420,70.2569,145.86,145.76,67.86]
[1750901775026,6.854,145.83,145.76,67.86]
[1750901775222,70.2569,145.86,145.76,67.86]
[1750901775526,6.8536,145.83,145.77,8.66130127]
[1750901775841,70.2569,145.86,145.77,8.66130127]
[1750901776040,2.3969,145.86,145.8,8.66130127]
[1750901776738,6.8536,145.83,145.76,76.52130127]
[1750901776930,2.3969,145.86,145.76,76.52130127]
[1750901777131,2.3969,145.86,145.72,1.1893]
[1750901777330,8.66130127,145.84,145.71,593.12]
[1750901777533,67.82,145.85,145.72,8.66130127]
[1750901777736,67.82,145.85,145.76,6.8565]
[1750901777936,67.82,145.85,145.78,8.66130127]
[1750901778942,67.82,145.85,145.76,67.82]
[1750901779334,67.82,145.85,145.75,8.66130127]
[1750901779531,67.82,145.85,145.73,67.82]
[1750901779532,67.82,145.85,145.78,8.66130127]
[1750901779740,67.82,145.85,145.72,1.1895]
[1750901780034,67.82,145.85,145.74,8.66130127]
[1750901780229,76.48130127,145.85,145.74,8.66130127]
[1750901780431,2.3969,145.86,145.77,8.66130127]
[1750901780741,2.3969,145.86,145.81,8.66130127]
[1750901780942,9.2491,145.86,145.81,15.51540127]
[1750901781139,9.2491,145.86,145.81,8.66130127]
[1750901781339,2.3237,145.88,145.81,8.66130127]
[1750901781538,6.8518,145.87,145.81,8.66130127]
[1750901781738,2.3237,145.88,145.81,8.66130127]
[1750901781934,2.3237,145.88,145.8,252.6]
[1750901781935,2.2403,145.92,145.84,8.66130127]
[1750901782134,2.2403,145.92,145.86,6.8522]
[1750901782338,2.2403,145.92,145.83,8.66130127]
[1750901782653,6.8501,145.91,145.84,6.8527]
[1750901782833,2.2403,145.92,145.81,8.66130127]
[1750901784142,2.2403,145.92,145.84,8.66130127]
[1750901784548,8.66130127,145.91,145.8,592.48]
[1750901784731,8.66130127,145.88,145.74,67.86]
[1750901784940,8.66130127,145.85,145.74,76.52130127]
[1750901785144,8.66130127,145.87,145.74,76.52130127]
[1750901785438,6.854,145.83,145.78,6.8559]
[1750901785640,2.3878,145.89,145.77,8.66130127]
[1750901785836,2.3878,145.89,145.78,8.66130127]
[1750901786034,6.8532,145.84,145.79,6.8554]
[1750901786239,2.3878,145.89,145.78,8.66130127]
[1750901787344,2.3878,145.89,145.79,8.66130127]
[1750901787842,6.8526,145.86,145.81,6.8545]
[1750901788034,2.3878,145.89,145.77,67.84]
[1750901788233,2.3878,145.89,145.78,8.66130127]
[1750901789143,2.3878,145.89,145.81,6.8542]
[1750901789533,6.8528,145.85,145.8,6.855]
[1750901789837,70.1003,145.92,145.82,8.66130127]
[1750901791145,70.1003,145.92,145.79,592.24]
[1750901791341,78.76160127,145.92,145.83,6.8533]
[1750901791536,78.76160127,145.92,145.79,600.90130127]
[1750901791738,78.76160127,145.92,145.81,8.66130127]
[1750901792040,2.2403,145.92,145.84,8.66130127]
[1750901792340,2.2403,145.92,145.84,67.84]
[1750901792548,2.2403,145.92,145.84,76.50130127]
[1750901793744,2.2403,145.92,145.84,67.84]
[1750901794146,7.15793386,145.92,145.84,67.84]
[1750901794545,4.91763386,145.91,145.8,8.66130127]
[1750901794745,8.66130127,145.87,145.77,67.84]
[1750901794951,73.70554039,145.91,145.71,592.18]
[1750901794952,6.8559,145.79,145.71,600.84130127]
[1750901795149,4.91763386,145.83,145.74,8.66130127]
[1750901795652,10.82406387,145.84,145.74,8.66130127]
[1750901795842,4.91763386,145.83,145.74,8.66130127]
[1750901796042,8.66130127,145.81,145.7,67.84]
[1750901796247,5.90643001,145.8,145.7,67.84]
[1750901796448,10.82406387,145.79,145.7,67.84]
[1750901796646,7.19483386,145.79,145.7,67.84]
[1750901796952,4.91763386,145.79,145.75,8.66130127]
[1750901797251,8.25013001,145.84,145.77,8.66130127]
[1750901797454,8.25013001,145.84,145.78,8.66130127]
[1750901797746,4.97838277,145.83,145.76,67.82]
[1750901797953,8.25013001,145.84,145.76,76.48130127]
[1750901798153,6.8546,145.81,145.76,76.48130127]
[1750901798454,5.91867428,145.83,145.79,8.66130127]
[1750901798654,2.3098,145.85,145.79,8.66130127]
[1750901798855,4.97947585,145.84,145.79,8.66130127]
[1750901799153,2.3098,145.85,145.79,8.66130127]
[1750901799355,4.9844448,145.84,145.76,67.82]
[1750901799554,6.8537,145.83,145.78,8.66130127]
[1750901800154,6.8532,145.84,145.78,15.51720127]
[1750901800556,6.8537,145.83,145.78,15.51720127]
[1750901800740,2.3098,145.85,145.78,15.51720127]
[1750901800945,2.3098,145.85,145.8,6.8549]